fUSD/lending_fUSD_20260605
["ID","MTS","AMOUNT","RATE_DAILY","PERIOD"]
[424131216,1780607434000,-735.0,0.00013699,2]
[424131214,1780607434000,-735.0,0.00013699,2]
[424131215,1780607434000,-735.0,0.00013699,2]
[424131203,1780607434000,-150.0,0.00013635,2]
[424131255,1780607434000,-1000.0,0.00013912,2]
[424131259,1780607434000,-1612.5,0.00013973,2]
[424131249,1780607434000,-3750.42,0.00013836,2]
[424131277,1780607434000,-500.0,0.00014098,2]
[424131275,1780607434000,-500.0,0.00014098,2]
[424131282,1780607434000,-500.0,0.00014098,2]
[424131281,1780607434000,-500.0,0.00014098,2]
[424131283,1780607434000,-500.0,0.00014098,2]
[424131289,1780607434000,-500.0,0.00014098,2]
[424131286,1780607434000,-500.0,0.00014098,2]
[424131290,1780607434000,-500.0,0.00014098,2]
[424131285,1780607434000,-500.0,0.00014098,2]
[424131284,1780607434000,-500.0,0.00014098,2]
[424131288,1780607434000,-500.0,0.00014098,2]
[424131278,1780607434000,-500.0,0.00014098,2]
[424131287,1780607434000,-500.0,0.00014098,2]
[424131293,1780607434000,-500.0,0.00014098,2]
[424131256,1780607434000,-561.53451674,0.00013912,2]
[424131295,1780607434000,-500.0,0.00014098,2]
[424131296,1780607434000,-500.0,0.00014098,2]
[424131294,1780607434000,-500.0,0.00014098,2]
[424131297,1780607434000,-500.0,0.00014098,2]
[424131298,1780607434000,-500.0,0.00014098,2]
[424131299,1780607434000,-500.0,0.00014098,2]
[424131301,1780607434000,-500.0,0.00014098,2]
[424131300,1780607434000,-500.0,0.00014098,2]
[424131302,1780607434000,-179.56548348,0.00014098,2]
[424131291,1780607434000,-500.0,0.00014098,2]
[424131273,1780607434000,-500.0,0.00014098,2]
[424131292,1780607434000,-500.0,0.00014098,2]
[424131274,1780607434000,-500.0,0.00014098,2]
[424131246,1780607434000,-119057.84,0.00013836,2]
[424131276,1780607434000,-500.0,0.00014098,2]
[424131248,1780607434000,-829.19566829,0.00013836,2]
[424131250,1780607434000,-166.66,0.00013836,2]
[424131253,1780607434000,-1581.83,0.00013909,2]
[424131252,1780607434000,-1198.01,0.00013909,2]
[424131254,1780607434000,-3018.25,0.00013909,2]
[424131258,1780607434000,-24999.99,0.00013973,2]
[424131266,1780607434000,-300.41159063,0.00014004,2]
[424131257,1780607434000,-166.66,0.00013973,2]
[424131260,1780607434000,-170.5,0.00013973,2]
[424131267,1780607434000,-278.28957408,0.00014004,2]
[424131251,1780607434000,-1000.0,0.00013857,2]
[424131262,1780607434000,-1292.1901,0.00013998,2]
[424131264,1780607434000,-250.0,0.00014,2]
[424131271,1780607434000,-1088.33,0.00014078,2]
[424131272,1780607434000,-282.12893503,0.00014089,2]
[424131268,1780607434000,-2240.35,0.00014005,2]
[424131279,1780607434000,-500.0,0.00014098,2]
[424131280,1780607434000,-500.0,0.00014098,2]
[424131269,1780607434000,-262.29259492,0.00014008,2]
[424131263,1780607434000,-178.47293732,0.00014,2]
[424131261,1780607434000,-500.0,0.00013998,2]
[424131270,1780607434000,-300.0,0.00014064,2]
[424131265,1780607434000,-256.10544332,0.00014,2]
[424131329,1780607435000,-1156.78,0.00014098,2]
[424131325,1780607435000,-1156.78,0.00014098,2]
[424131324,1780607435000,-1156.78,0.00014098,2]
[424131330,1780607435000,-1156.78,0.00014098,2]
[424131321,1780607435000,-321.90339299,0.00014098,2]
[424131331,1780607435000,-1156.78,0.00014098,2]
[424131327,1780607435000,-1156.78,0.00014098,2]
[424131332,1780607435000,-1156.78,0.00014098,2]
[424131333,1780607435000,-1156.78,0.00014098,2]
[424131326,1780607435000,-1156.78,0.00014098,2]
[424131328,1780607435000,-1156.78,0.00014098,2]
[424131335,1780607435000,-500.0,0.00014098,2]
[424131322,1780607435000,-151.0,0.00014098,2]
[424131337,1780607435000,-500.0,0.00014098,2]
[424131334,1780607435000,-1156.78,0.00014098,2]
[424131320,1780607435000,-500.0,0.00014098,2]
[424131311,1780607435000,-500.0,0.00014098,2]
[424131319,1780607435000,-500.0,0.00014098,2]
[424131345,1780607435000,-500.0,0.00014098,2]
[424131303,1780607435000,-320.43451652,0.00014098,2]
[424131305,1780607435000,-500.0,0.00014098,2]
[424131304,1780607435000,-500.0,0.00014098,2]
[424131308,1780607435000,-500.0,0.00014098,2]
[424131306,1780607435000,-500.0,0.00014098,2]
[424131309,1780607435000,-500.0,0.00014098,2]
[424131318,1780607435000,-500.0,0.00014098,2]
[424131307,1780607435000,-510.27174573,0.00014098,2]
[424131316,1780607435000,-500.0,0.00014098,2]
[424131312,1780607435000,-500.0,0.00014098,2]
[424131315,1780607435000,-500.0,0.00014098,2]
[424131314,1780607435000,-500.0,0.00014098,2]
[424131317,1780607435000,-500.0,0.00014098,2]
[424131323,1780607435000,-150.0,0.00014098,2]
[424131313,1780607435000,-500.0,0.00014098,2]
[424131310,1780607435000,-500.0,0.00014098,2]
[424131348,1780607435000,-500.0,0.00014098,2]
[424131355,1780607435000,-500.0,0.00014098,2]
[424131344,1780607435000,-500.0,0.00014098,2]
[424131363,1780607435000,-500.0,0.00014098,2]
[424131368,1780607435000,-559.67610396,0.00014098,2]
[424131366,1780607435000,-500.0,0.00014098,2]
[424131364,1780607435000,-500.0,0.00014098,2]
[424131369,1780607435000,-500.0,0.00014098,2]
[424131372,1780607435000,-640.72588503,0.00014098,2]
[424131371,1780607435000,-500.0,0.00014098,2]
[424131370,1780607435000,-500.0,0.00014098,2]
[424131362,1780607435000,-500.0,0.00014098,2]
[424131367,1780607435000,-500.0,0.00014098,2]
[424131374,1780607435000,-110781.0750445,0.00014099,2]
[424131373,1780607435000,-20742.94919237,0.00014099,2]
[424131375,1780607435000,-275.65157898,0.00012521,2]
[424131376,1780607435000,-224.34842102,0.00012521,2]
[424131336,1780607435000,-500.0,0.00014098,2]
[424131358,1780607435000,-183.57762355,0.00014098,2]
[424131360,1780607435000,-500.0,0.00014098,2]
[424131365,1780607435000,-500.0,0.00014098,2]
[424131350,1780607435000,-500.0,0.00014098,2]
[424131340,1780607435000,-500.0,0.00014098,2]
[424131359,1780607435000,-500.0,0.00014098,2]
[424131346,1780607435000,-494.05405209,0.00014098,2]
[424131343,1780607435000,-500.0,0.00014098,2]
[424131347,1780607435000,-500.0,0.00014098,2]
[424131338,1780607435000,-500.0,0.00014098,2]
[424131341,1780607435000,-500.0,0.00014098,2]
[424131342,1780607435000,-500.0,0.00014098,2]
[424131339,1780607435000,-500.0,0.00014098,2]
[424131351,1780607435000,-500.0,0.00014098,2]
[424131353,1780607435000,-500.0,0.00014098,2]
[424131354,1780607435000,-500.0,0.00014098,2]
[424131356,1780607435000,-500.0,0.00014098,2]
[424131361,1780607435000,-500.0,0.00014098,2]
[424131352,1780607435000,-500.0,0.00014098,2]
[424131357,1780607435000,-500.0,0.00014098,2]
[424131349,1780607435000,-500.0,0.00014098,2]
[424131377,1780607436000,-500.0,0.00012521,2]
[424131378,1780607436000,-475.65157898,0.00012521,2]
[424131380,1780607436000,-269.13314227,0.00014099,2]
[424131383,1780607436000,-24.08762846,0.00012521,2]
[424131382,1780607436000,-461.22841614,0.00012521,2]
[424131381,1780607436000,-256.23374555,0.00012521,2]
[424131379,1780607436000,-24.34842102,0.00012521,2]
[424131397,1780607438000,-150.0,0.00014252,2]
[424131386,1780607438000,-475.91237154,0.00012521,2]
[424131393,1780607438000,-166.66,0.00014247,2]
[424131392,1780607438000,-152.0,0.00014207,2]
[424131398,1780607438000,-150.00000001,0.00014252,2]
[424131394,1780607438000,-215.73365239,0.00014251,2]
[424131395,1780607438000,-150.0,0.00014252,2]
[424131396,1780607438000,-150.0,0.00014252,2]
[424131400,1780607438000,-150.0,0.00014252,2]
[424131388,1780607438000,-166.66,0.0001411,2]
[424131389,1780607438000,-152.0,0.00014203,2]
[424131390,1780607438000,-152.0,0.00014203,2]
[424131391,1780607438000,-152.0,0.00014207,2]
[424131399,1780607438000,-150.0,0.00014252,2]
[424131401,1780607438000,-150.0,0.00014252,2]
[424131402,1780607438000,-150.0,0.00014252,2]
[424131403,1780607438000,-1154.30639488,0.00014274,2]
[424131387,1780607438000,-531.04,0.000141,2]
[424131423,1780607441000,-500.0,0.00014639,7]
[424131424,1780607441000,-500.0,0.00014639,7]
[424131414,1780607441000,-400.38,0.00014477,2]
[424131422,1780607441000,-500.0,0.00014639,7]
[424131426,1780607441000,-500.0,0.00014639,7]
[424131419,1780607441000,-218.63873992,0.00014639,7]
[424131425,1780607441000,-165.67944805,0.00014639,7]
[424131418,1780607441000,-500.0,0.00014639,7]
[424131428,1780607441000,-500.0,0.00014639,7]
[424131420,1780607441000,-500.0,0.00014639,7]
[424131421,1780607441000,-150.0,0.00014639,7]
[424131410,1780607441000,-1866.39917169,0.00014274,2]
[424131416,1780607441000,-150.0,0.00014625,2]
[424131415,1780607441000,-150.0,0.00014532,2]
[424131413,1780607441000,-150.0,0.00014438,2]
[424131411,1780607441000,-150.0,0.00014345,2]
[424131412,1780607441000,-166.66,0.00014384,2]
[424131409,1780607441000,-1575.83995999,0.00014274,2]
[424131408,1780607441000,-2077.09609669,0.00014274,2]
[424131407,1780607441000,-2438.15312271,0.00014274,2]
[424131406,1780607441000,-1131.52677623,0.00014274,2]
[424131405,1780607441000,-246.53847781,0.00014274,2]
[424131404,1780607441000,-160.0,0.0001425,2]
[424131417,1780607441000,-3603.38,0.00014634,2]
[424131429,1780607441000,-500.0,0.00014639,7]
[424131431,1780607441000,-500.0,0.00014639,7]
[424131433,1780607441000,-2000.0,0.000147,2]
[424131427,1780607441000,-500.0,0.00014639,7]
[424131455,1780607441000,-1113.81,0.00015,2]
[424131454,1780607441000,-673.14,0.00015,2]
[424131453,1780607441000,-2000.0,0.00015,2]
[424131451,1780607441000,-165.75,0.00014985,2]
[424131452,1780607441000,-150.0,0.00014997,2]
[424131447,1780607441000,-151.11548339,0.00014928,2]
[424131449,1780607441000,-283.58,0.00014939,2]
[424131448,1780607441000,-680.6,0.00014935,2]
[424131444,1780607441000,-280.47126686,0.00014913,7]
[424131445,1780607441000,-689.09818813,0.00014913,7]
[424131446,1780607441000,-2000.0,0.00014918,2]
[424131442,1780607441000,-150.0,0.00014904,2]
[424131440,1780607441000,-6322.19162691,0.00014866,2]
[424131441,1780607441000,-433.0,0.00014899,2]
[424131443,1780607441000,-576.70411832,0.00014913,7]
[424131439,1780607441000,-263.452792,0.00014865,2]
[424131434,1780607441000,-500.0,0.000147,2]
[424131437,1780607441000,-150.0,0.00014811,2]
[424131435,1780607441000,-150.0,0.00014718,2]
[424131436,1780607441000,-150.0,0.0001478,2]
[424131438,1780607441000,-1886.7292886,0.00014829,2]
[424131450,1780607441000,-167.49,0.00014985,2]
[424131432,1780607441000,-181.45627515,0.00014639,7]
[424131493,1780607442000,-308.14837309,0.00015528,2]
[424131497,1780607442000,-237.0,0.0001558,2]
[424131495,1780607442000,-150.0,0.00015556,2]
[424131492,1780607442000,-350.40298876,0.00015528,2]
[424131488,1780607442000,-689.09818813,0.00015339,7]
[424131489,1780607442000,-150.0,0.0001537,2]
[424131491,1780607442000,-150.0,0.00015463,2]
[424131490,1780607442000,-500.0,0.00015404,2]
[424131498,1780607442000,-10000.0,0.0001564,2]
[424131496,1780607442000,-357.0,0.00015579,2]
[424131487,1780607442000,-280.47126686,0.00015339,7]
[424131501,1780607442000,-150.0,0.00015649,2]
[424131521,1780607442000,-500.0,0.0001585,2]
[424131504,1780607442000,-150.0,0.00015742,2]
[424131503,1780607442000,-233353.63987759,0.0001574,2]
[424131508,1780607442000,-150.0,0.00015836,2]
[424131510,1780607442000,-150.0,0.00015836,2]
[424131525,1780607442000,-500.0,0.0001585,2]
[424131506,1780607442000,-150.0,0.00015836,2]
[424131512,1780607442000,-192.19846887,0.00015836,2]
[424131515,1780607442000,-282.12893503,0.00015844,2]
[424131519,1780607442000,-500.0,0.0001585,2]
[424131517,1780607442000,-417.13045272,0.0001585,2]
[424131477,1780607442000,-500.0,0.00015309,2]
[424131523,1780607442000,-1156.78,0.0001585,2]
[424131527,1780607442000,-500.0,0.0001585,2]
[424131499,1780607442000,-250.0,0.00015641,2]
[424131481,1780607442000,-500.0,0.00015309,2]
[424131471,1780607442000,-150.0,0.00015277,2]
[424131478,1780607442000,-500.0,0.00015309,2]
[424131462,1780607442000,-4962.56,0.00015093,2]
[424131461,1780607442000,-150.0,0.0001509,2]
[424131458,1780607442000,-160.478799,0.00015003,2]
[424131457,1780607442000,-183.815417,0.00015003,2]
[424131460,1780607442000,-725.88,0.00015068,2]
[424131459,1780607442000,-168.638858,0.00015003,2]
[424131456,1780607442000,-188.083407,0.00015003,2]
[424131463,1780607442000,-668.28,0.00015129,2]
[424131466,1780607442000,-160.0,0.00015153,2]
[424131468,1780607442000,-435.504953,0.00015153,2]
[424131465,1780607442000,-2351.0,0.0001515,2]
[424131467,1780607442000,-297.752476,0.00015153,2]
[424131479,1780607442000,-500.0,0.00015309,2]
[424131469,1780607442000,-150.0,0.00015184,2]
[424131473,1780607442000,-181.11434507,0.00015282,2]
[424131470,1780607442000,-400.38,0.00015201,2]
[424131472,1780607442000,-512.97818811,0.00015282,2]
[424131474,1780607442000,-150.0,0.00015308,2]
[424131475,1780607442000,-500.0,0.00015309,2]
[424131483,1780607442000,-500.0,0.00015309,2]
[424131482,1780607442000,-500.0,0.00015309,2]
[424131486,1780607442000,-576.70411832,0.00015339,7]
[424131485,1780607442000,-500.0,0.00015309,2]
[424131476,1780607442000,-500.0,0.00015309,2]
[424131484,1780607442000,-1114.18,0.00015309,2]
[424131480,1780607442000,-500.0,0.00015309,2]
[424131464,1780607442000,-170.15,0.00015129,2]
[424131534,1780607442000,-500.0,0.00015853,2]
[424131560,1780607442000,-7456.0546823,0.00015854,2]
[424131531,1780607442000,-500.0,0.00015853,2]
[424131609,1780607442000,-500.0,0.00015893,2]
[424131607,1780607442000,-500.0,0.00015893,2]
[424131601,1780607442000,-500.0,0.00015893,2]
[424131620,1780607442000,-500.0,0.00015893,2]
[424131623,1780607442000,-500.0,0.00015893,2]
[424131622,1780607442000,-500.0,0.00015893,2]
[424131611,1780607442000,-500.0,0.00015893,2]
[424131614,1780607442000,-500.0,0.00015893,2]
[424131618,1780607442000,-612.93945237,0.00015893,2]
[424131616,1780607442000,-500.0,0.00015893,2]
[424131624,1780607442000,-500.0,0.00015893,2]
[424131627,1780607442000,-611.39331799,0.00015893,2]
[424131603,1780607442000,-500.0,0.00015893,2]
[424131628,1780607442000,-1114.18,0.00015893,2]
[424131630,1780607442000,-1114.18,0.00015893,2]
[424131631,1780607442000,-1114.18,0.00015893,2]
[424131625,1780607442000,-500.0,0.00015893,2]
[424131636,1780607442000,-151.0,0.00015894,2]
[424131632,1780607442000,-1114.18,0.00015893,2]
[424131635,1780607442000,-500.0,0.00015893,2]
[424131634,1780607442000,-500.0,0.00015893,2]
[424131633,1780607442000,-1114.18,0.00015893,2]
[424131637,1780607442000,-1000.0,0.00015894,2]
[424131639,1780607442000,-576.70411832,0.00015907,7]
[424131638,1780607442000,-452.34331526,0.00015894,2]
[424131529,1780607442000,-144508.307199,0.00015851,2]
[424131626,1780607442000,-500.0,0.00015893,2]
[424131605,1780607442000,-500.0,0.00015893,2]
[424131629,1780607442000,-1114.18,0.00015893,2]
[424131597,1780607442000,-500.0,0.00015893,2]
[424131594,1780607442000,-500.0,0.00015893,2]
[424131542,1780607442000,-1156.78,0.00015853,2]
[424131538,1780607442000,-500.0,0.00015853,2]
[424131547,1780607442000,-1156.78,0.00015853,2]
[424131545,1780607442000,-1156.78,0.00015853,2]
[424131541,1780607442000,-500.0,0.00015853,2]
[424131549,1780607442000,-500.0,0.00015853,2]
[424131553,1780607442000,-500.0,0.00015853,2]
[424131551,1780607442000,-500.0,0.00015853,2]
[424131562,1780607442000,-815605.9577291,0.00015854,2]
[424131558,1780607442000,-485.80277761,0.00015853,2]
[424131556,1780607442000,-500.0,0.00015853,2]
[424131564,1780607442000,-318.07178121,0.00015854,2]
[424131566,1780607442000,-350.0,0.0001589,3]
[424131536,1780607442000,-500.0,0.00015853,2]
[424131592,1780607442000,-500.0,0.00015893,2]
[424131571,1780607442000,-500.0,0.00015893,2]
[424131573,1780607442000,-500.0,0.00015893,2]
[424131575,1780607442000,-500.0,0.00015893,2]
[424131581,1780607442000,-500.0,0.00015893,2]
[424131579,1780607442000,-500.0,0.00015893,2]
[424131584,1780607442000,-500.0,0.00015893,2]
[424131586,1780607442000,-500.0,0.00015893,2]
[424131588,1780607442000,-500.0,0.00015893,2]
[424131569,1780607442000,-301.49211001,0.00015893,2]
[424131590,1780607442000,-500.0,0.00015893,2]
[424131577,1780607442000,-500.0,0.00015893,2]
[424131599,1780607442000,-500.0,0.00015893,2]
[424131676,1780607443000,-1555.5,0.00016643,2]
[424131689,1780607443000,-163.97769265,0.00017037,2]
[424131666,1780607443000,-500.0,0.000164,2]
[424131682,1780607443000,-500.0,0.00016817,2]
[424131679,1780607443000,-168.17,0.00016712,2]
[424131690,1780607443000,-182.0,0.00017048,2]
[424131667,1780607443000,-500.0,0.000164,2]
[424131678,1780607443000,-3292.0,0.00016665,2]
[424131687,1780607443000,-215.73365239,0.00017,7]
[424131677,1780607443000,-400.38,0.00016649,2]
[424131665,1780607443000,-500.0,0.000164,2]
[424131686,1780607443000,-6322.19162691,0.00016982,2]
[424131688,1780607443000,-1886.7292886,0.00017016,2]
[424131681,1780607443000,-500.0,0.00016817,2]
[424131703,1780607443000,-512.97818811,0.00017574,2]
[424131684,1780607443000,-1102.35,0.00016932,2]
[424131692,1780607443000,-215.73365239,0.000171,3]
[424131702,1780607443000,-500.0,0.0001751,2]
[424131693,1780607443000,-6188.46715844,0.00017161,2]
[424131691,1780607443000,-12329.29140628,0.000171,3]
[424131694,1780607443000,-166.66,0.00017169,2]
[424131696,1780607443000,-2560.02,0.00017224,2]
[424131699,1780607443000,-1068.25,0.00017425,2]
[424131700,1780607443000,-211.133574,0.00017426,2]
[424131697,1780607443000,-400.38,0.00017372,2]
[424131695,1780607443000,-1613.0535,0.00017191,2]
[424131701,1780607443000,-2000.0,0.0001751,2]
[424131685,1780607443000,-357.0,0.00016949,2]
[424131675,1780607443000,-2000.0,0.00016575,2]
[424131640,1780607443000,-280.4712669,0.00015907,7]
[424131668,1780607443000,-567.4,0.000164,2]
[424131698,1780607443000,-500.0,0.00017397,2]
[424131650,1780607443000,-429.27591873,0.00016,2]
[424131641,1780607443000,-689.09818816,0.00015907,7]
[424131646,1780607443000,-500.0,0.00015952,2]
[424131648,1780607443000,-1114.18,0.00015993,2]
[424131644,1780607443000,-6322.19162691,0.00015924,2]
[424131645,1780607443000,-400.38,0.00015925,2]
[424131643,1780607443000,-1886.7292886,0.00015922,2]
[424131653,1780607443000,-1500.0,0.00016095,2]
[424131651,1780607443000,-300.0,0.00016,2]
[424131655,1780607443000,-9999.99,0.00016116,2]
[424131652,1780607443000,-421.12204838,0.00016049,2]
[424131654,1780607443000,-429.27591873,0.000161,2]
[424131658,1780607443000,-500.0,0.00016168,2]
[424131657,1780607443000,-199.11687224,0.00016165,3]
[424131656,1780607443000,-163.59186278,0.00016165,3]
[424131661,1780607443000,-150.0,0.00016328,2]
[424131660,1780607443000,-266.155764,0.00016254,2]
[424131659,1780607443000,-736.0,0.00016185,2]
[424131662,1780607443000,-150.0,0.00016328,2]
[424131663,1780607443000,-277.75388502,0.00016328,2]
[424131664,1780607443000,-402.29206351,0.00016379,2]
[424131670,1780607443000,-500.0,0.00016421,2]
[424131671,1780607443000,-3468.4,0.00016438,2]
[424131672,1780607443000,-725.88,0.00016438,2]
[424131669,1780607443000,-237.0,0.00016402,2]
[424131673,1780607443000,-531.04,0.000165,2]
[424131674,1780607443000,-248.0,0.000165,2]
[424131704,1780607443000,-302.01313239,0.00017574,2]
[424131642,1780607443000,-406.026104,0.0001591,2]
[424131708,1780607443000,-254.81,0.000178,2]
[424131733,1780607443000,-14374.7,0.00018533,2]
[424131741,1780607443000,-1000.07,0.00018904,2]
[424131751,1780607443000,-1865.36488656,0.00019383,2]
[424131752,1780607443000,-166.66,0.00019436,2]
[424131740,1780607443000,-531.04,0.000189,2]
[424131749,1780607443000,-500.0,0.00019335,2]
[424131743,1780607443000,-2129.0,0.00019134,2]
[424131742,1780607443000,-6322.19162691,0.00019098,2]
[424131744,1780607443000,-150.0,0.00019178,2]
[424131747,1780607443000,-216.05485521,0.00019178,2]
[424131748,1780607443000,-1886.7292886,0.00019202,2]
[424131750,1780607443000,-500.0,0.00019335,2]
[424131745,1780607443000,-150.0,0.00019178,2]
[424131746,1780607443000,-150.0,0.00019178,2]
[424131754,1780607443000,-400.38,0.00019544,2]
[424131753,1780607443000,-760.0,0.00019452,2]
[424131755,1780607443000,-1801.58672356,0.0001957,2]
[424131757,1780607443000,-1000.0,0.0001987,2]
[424131759,1780607443000,-2000.0,0.0001989,2]
[424131761,1780607443000,-340.0,0.00019901,2]
[424131760,1780607443000,-187.99013607,0.000199,2]
[424131764,1780607443000,-340.0,0.00019901,2]
[424131763,1780607443000,-340.0,0.00019901,2]
[424131758,1780607443000,-500.0,0.0001987,2]
[424131756,1780607443000,-800.60606509,0.0001957,2]
[424131762,1780607443000,-340.0,0.00019901,2]
[424131707,1780607443000,-1672.7364795,0.00017739,2]
[424131736,1780607443000,-169.59,0.00018589,2]
[424131739,1780607443000,-166.66,0.0001887,2]
[424131765,1780607443000,-340.0,0.00019901,2]
[424131738,1780607443000,-1798.80895522,0.00018835,2]
[424131706,1780607443000,-166.66,0.00017736,2]
[424131710,1780607443000,-271.73586224,0.00017851,2]
[424131709,1780607443000,-347.2850757,0.00017851,2]
[424131711,1780607443000,-350.40298876,0.00017857,2]
[424131705,1780607443000,-1252.0,0.00017597,2]
[424131715,1780607443000,-6322.19162691,0.0001804,2]
[424131712,1780607443000,-206.29786351,0.00017857,2]
[424131713,1780607443000,-350.0,0.00018,2]
[424131734,1780607443000,-151.0065662,0.00018565,2]
[424131717,1780607443000,-500.0,0.00018052,2]
[424131718,1780607443000,-1156.78,0.00018052,2]
[424131722,1780607443000,-2000.0,0.00018233,2]
[424131719,1780607443000,-1034.16,0.00018082,2]
[424131721,1780607443000,-1886.7292886,0.00018109,2]
[424131714,1780607443000,-262.2925949,0.00018013,2]
[424131727,1780607443000,-89757.17,0.00018356,2]
[424131735,1780607443000,-169.59,0.00018589,2]
[424131724,1780607443000,-1734.62772924,0.00018287,2]
[424131737,1780607443000,-400.38,0.0001882,2]
[424131729,1780607443000,-19999.99,0.00018533,2]
[424131730,1780607443000,-1414.84,0.00018533,2]
[424131731,1780607443000,-9999.99,0.00018533,2]
[424131732,1780607443000,-1218.19,0.00018533,2]
[424131723,1780607443000,-4204.85,0.00018275,2]
[424131725,1780607443000,-166.66,0.00018303,2]
[424131716,1780607443000,-245.766619,0.00018046,2]
[424131720,1780607443000,-400.38,0.00018096,2]
[424131726,1780607443000,-4609.0,0.00018331,2]
[424131728,1780607443000,-3468.4,0.0001841,2]
[424131810,1780607444000,-255.5519539,0.000204,2]
[424131804,1780607444000,-1334.15855585,0.000204,2]
[424131814,1780607444000,-150.0,0.00020487,2]
[424131813,1780607444000,-2005.9555727,0.00020479,2]
[424131808,1780607444000,-294.44634826,0.000204,2]
[424131791,1780607444000,-6453.0,0.00020164,2]
[424131796,1780607444000,-255.5519539,0.000202,2]
[424131798,1780607444000,-1886.7292886,0.00020295,2]
[424131794,1780607444000,-10153.76883633,0.000202,2]
[424131795,1780607444000,-294.44634826,0.000202,2]
[424131806,1780607444000,-10153.76883633,0.000204,2]
[424131820,1780607444000,-500.0,0.00020547,2]
[424131857,1780607444000,-1709.49044267,0.00020789,2]
[424131825,1780607444000,-1709.49044267,0.00020568,2]
[424131818,1780607444000,-1709.49044267,0.00020536,2]
[424131816,1780607444000,-1709.49044267,0.00020525,2]
[424131834,1780607444000,-6188.46715844,0.00020585,2]
[424131836,1780607444000,-7578.62231106,0.000206,2]
[424131838,1780607444000,-1334.15855585,0.000206,2]
[424131841,1780607444000,-10153.76883633,0.000206,2]
[424131843,1780607444000,-294.44634826,0.000206,2]
[424131853,1780607444000,-1709.49044267,0.00020685,2]
[424131855,1780607444000,-1709.49044267,0.00020734,2]
[424131859,1780607444000,-3620.0,0.00020798,2]
[424131802,1780607444000,-7578.62231106,0.000204,2]
[424131822,1780607444000,-1156.78,0.00020547,2]
[424131800,1780607444000,-3468.4,0.00020381,2]
[424131783,1780607444000,-1149.0,0.0002,2]
[424131792,1780607444000,-7578.62231106,0.000202,2]
[424131845,1780607444000,-1709.49044267,0.00020611,2]
[424131775,1780607444000,-1934.38338736,0.00019931,2]
[424131776,1780607444000,-7578.62231106,0.0002,2]
[424131767,1780607444000,-340.0,0.00019901,2]
[424131768,1780607444000,-340.0,0.00019901,2]
[424131770,1780607444000,-340.0,0.00019901,2]
[424131771,1780607444000,-340.0,0.00019901,2]
[424131766,1780607444000,-340.0,0.00019901,2]
[424131769,1780607444000,-340.0,0.00019901,2]
[424131774,1780607444000,-165.90641432,0.00019901,2]
[424131772,1780607444000,-340.0,0.00019901,2]
[424131773,1780607444000,-340.0,0.00019901,2]
[424131777,1780607444000,-1334.15855585,0.0002,2]
[424131781,1780607444000,-182.44233934,0.0002,2]
[424131779,1780607444000,-10153.76883633,0.0002,2]
[424131787,1780607444000,-166.66,0.00020003,2]
[424131786,1780607444000,-2000.0,0.0002,7]
[424131778,1780607444000,-294.44634826,0.0002,2]
[424131782,1780607444000,-861.507014,0.0002,2]
[424131789,1780607444000,-760.0,0.00020136,2]
[424131780,1780607444000,-255.5519539,0.0002,2]